[Event "NY Presidents Day IM-B 2024"]
[Site "New York"]
[Date "2024.02.17"]
[Round "4.6"]
[White "Wongso, Steve"]
[Black "Jimenez Fraga, Pedro Alejandro"]
[Result "0-1"]
[ECO "B33"]
[WhiteElo "2229"]
[BlackElo "2447"]
[Annotator "TA"]
[PlyCount "110"]
[EventDate "2024.02.14"]
[EventType "schev"]
[EventCountry "USA"]
[SourceTitle "playchess.com"]
[Source "ChessBase"]
[SourceQuality "1"]
[TimeControl "5400+30"]

{[%evp 37,110,107,93,108,107,101,118,101,106,95,104,102,125,131,139,107,163,147,152,104,135,126,129,118,124,95,87,85,97,51,58,0,59,68,47,46,94,26,28,0,0,-13,-24,-36,0,0,82,-31,0,-164,0,-5,0,-98,0,-387,-381,-360,-13,-602,-572,-5908,-4794,-29988,-29989,-29989,-29990,-29993,-29992,-29992,-29993,-29993,-29993,-29994,-29993]} 1. e4 {[%emt 0:00:03]} c5 {[%emt 0:00:04]} 2. Nf3 {[%emt 0:00:02]} Nc6 {[%emt 0:00:36]} 3. d4 {[%emt 0:00:10]} cxd4 {[%emt 0:00:14]} 4. Nxd4 {[%emt 0:00:03]} Qb6 {[%emt 0:00:05]} 5. Nb3 {[%emt 0:01:59]} Nf6 {[%emt 0:00:03]} 6. Nc3 {[%emt 0:00:14]} e6 {[%emt 0:00:06]} 7. Be3 {[%emt 0:01:22]} Qc7 {[%emt 0:00:09]} 8. g3 {[%emt 0:02:28]} a6 {[%emt 0:09:05]} 9. Bg2 {[%emt 0:00:41]} d6 {[%emt 0:03:57]} 10. O-O {[%emt 0:00:09]} Ne5 {[%emt 0:01:27]} 11. f4 {[%emt 0:06:13]} Nc4 {[%emt 0:00:12]} 12. Bc1 {[%emt 0:00:04]} Be7 {[%emt 0:03:51]} 13. g4 {[%emt 0:05:14]} Rb8 {[%emt 0:00:40]} 14. g5 {[%emt 0:15:39]} Nd7 {[%emt 0:00:03]} 15. Nd4 {[%emt 0:02:58]} b5 {[%emt 0:36:35]} 16. f5 {[%emt 0:08:22]} e5 {[%emt 0:00:11]} 17. f6 {[%emt 0:01:29]} exd4 {[%emt 0:06:59]} 18. Nd5 {[%emt 0:00:45]} Qc5 {[%emt 0:01:34]} 19. b4 {[%emt 0:02:49]} Qa7 {[%emt 0:03:13]} 20. Nxe7 {[%emt 0:00:59]} (20. fxe7 Bb7 $11) 20... g6 {[%emt 0:01:58]} 21. Nc6 {[%emt 0:02:17]} Qb6 {[%emt 0:00:06]} 22. Nxb8 {[%emt 0:00:20]} Nxb8 {[%emt 0:00:06]} 23. Kh1 {[%emt 0:03:14]} Nc6 {[%emt 0:00:24]} 24. Qe1 {[%emt 0:01:35]} Bb7 {[%emt 0:02:55]} 25. Bf4 {[%emt 0:02:21]} N6e5 {[%emt 0:00:42]} 26. Rd1 {[%emt 0:00:13]} Nb2 {[%emt 0:00:14]} (26... O-O $16 27. Qh4 h5) 27. Rb1 {[%emt 0:02:11]} Nbc4 {[%emt 0:00:05]} 28. Qg3 {[%emt 0:04:01]} (28. Qh4 $142) 28... Bc8 {[%emt 0:01:48]} 29. h3 {[%emt 0:01:25]} Be6 {[%emt 0:00:27]} 30. Rfe1 {[%emt 0:04:22]} O-O {[%emt 0:01:48]} 31. Qf2 {[%emt 0:02:32]} Rc8 {[%emt 0:01:59]} 32. Rbd1 {[%emt 0:02:23]} Nc6 {[%emt 0:01:11]} 33. Bf1 {[%emt 0:08:29]} (33. Re2 $16) 33... Nxb4 $14 {[%emt 0:04:27]} 34. Bxc4 {[%emt 0:01:32]} (34. Qxd4 Qxd4 35. Rxd4 Nxc2 $17 (35... Nxa2 $2 36. Bxc4 Bxc4 37. Rxd6 $18)) (34. Rxd4 Nxc2 (34... Nxa2 $2 35. Bxc4 bxc4 36. Rd2 $18) 35. Red1 Nxd4 36. Qxd4 Qa5 $11) (34. h4 $14) 34... bxc4 {[%emt 0:04:01]} ({Black should play} 34... Rxc4 $11 35. c3 Rxc3 36. Qxd4 Rxh3+ 37. Bh2 Qxd4 38. Rxd4 Nd3 (38... Nxa2 39. Rxd6 h5 40. Red1 $18)) 35. a3 {[%emt 0:01:37]} (35. Rxd4 $2 Nxc2 (35... Nxa2 $2 36. Qe3 $18) 36. Qxc2 Qxd4 $19) (35. Qxd4 Qxd4 36. Rxd4 Nxc2 $17 (36... Nxa2 $2 37. Rxd6 Re8 38. Red1 $18)) 35... Nc6 $1 {[%emt 0:00:06]} 36. Bxd6 {[%emt 0:00:12]} Qa5 {[%emt 0:01:23]} (36... Qb5 $14 {should be considered.}) 37. Qh4 {[%emt 0:03:51]} (37. Qg3 $16) 37... h5 $1 $11 {[%emt 0:00:11]} (37... Qc3 $6 38. Qh6 Qxh3+ (38... Qf3+ 39. Kg1) 39. Qxh3 Bxh3 40. Rb1 $16) 38. gxh6 {[%emt 0:00:03]} Kh7 {[%emt 0:00:02]} 39. Qg3 {[%emt 0:00:06]} Qh5 {[%emt 0:02:24]} 40. Kh2 {[%emt 0:01:05]} Rd8 {[%emt 0:00:40]} (40... d3 $5 41. cxd3 Nd4 $11) 41. e5 {[%emt 0:01:23]} c3 {[%emt 0:01:11]} (41... Rc8 $11) 42. Rb1 {[%emt 0:01:35]} (42. Rd3 $1 $16) 42... Re8 {[%emt 0:05:38]} 43. Qg2 $2 {[%emt 0:01:44]} (43. a4 $11) 43... Rc8 $2 {[%emt 0:00:48]} (43... d3 $1 $19 {[%cal Rd3d2]} 44. Re3 (44. Qxc6 d2 $17) (44. cxd3 $2 Nd4 $19) 44... dxc2 45. Qxc2 (45. Qxc6 cxb1=Q 46. Qg2 c2 47. Bb4 c1=Q 48. Bd2 Bxh3 49. Bxc1 Bxg2+ 50. Kxg2 Qc2+) 45... Nd4 46. Qxc3 Rc8) 44. Qg3 $11 {[%emt 0:03:08]} Re8 {[%emt 0:03:31]} 45. Rb7 {[%emt 0:00:05]} (45. a4 $11 {keeps the balance.}) 45... Rc8 {[%emt 0:01:23]} ({Better is} 45... Qf5 $1 $17 {[%cal Rf5c2]} 46. Re2 d3) 46. Bc7 $2 {[%emt 0:06:23][%mdl 8192]} (46. Kg1 $11 {and White is okay.}) 46... Qf5 $1 $19 {[%emt 0:00:48]} 47. Re2 {[%emt 0:01:27] [#]} Bd5 $2 {[%emt 0:00:38]} ({Black should try} 47... d3 $1 $19 {[%cal Rd3e2]} 48. Qxd3 (48. cxd3 $2 {perishes.} Nd4 $19) 48... Qxd3 49. cxd3 Nd4) 48. Bd6 $2 {[%emt 0:00:12][%mdl 8192] [#]} (48. Bb6 $11) 48... d3 $1 $19 {[%emt 0:00:42]} (48... Nxe5 49. Qxe5 Bxb7 50. Qxf5 gxf5 51. Re7 $19) 49. cxd3 {[%emt 0:01:18]} Nd4 {[%emt 0:04:20]} 50. Rf2 c2 {[%emt 0:00:00]} 51. Rxf5 {[%emt 0:00:51]} c1=Q {[%emt 0:01:00]} (51... c1=B $2 {too greedy.} 52. Rxf7+ Bxf7 53. Rf2 Bxh6 54. Qg2 $18) 52. Qf2 {[%emt 0:00:55]} Qh1+ {[%emt 0:00:00]} 53. Kg3 {[%emt 0:00:04]} Nxf5+ {[%emt 0:00:00]} 54. Kg4 {[%emt 0:00:03]} Nxh6+ {[%emt 0:00:00]} 55. Kf4 {[%emt 0:00:32]} Bxb7 {[%emt 0:00:00]} 0-1

[Event "NY Presidents Day IM-B 2024"]
[Site "New York"]
[Date "2024.02.18"]
[Round "5.1"]
[White "Jimenez Fraga, Pedro Alejandro"]
[Black "Rajesh, C.S."]
[Result "1/2-1/2"]
[ECO "B40"]
[WhiteElo "2447"]
[BlackElo "2218"]
[Annotator "TA"]
[PlyCount "130"]
[EventDate "2024.02.14"]
[EventType "schev"]
[EventCountry "USA"]
[SourceTitle "playchess.com"]
[Source "ChessBase"]
[SourceQuality "1"]
[TimeControl "5400+30"]

{[%evp 9,130,-16,-8,-6,-16,-10,-11,-16,-14,-61,-62,-66,-72,-66,-61,-64,-77,-95,-89,-91,-97,-93,-70,-79,-29,-34,-22,-23,-22,-23,-22,-41,-37,-35,-36,-37,-38,-43,-16,-108,-93,-96,0,-6,-9,-11,0,0,0,0,1,2,3,0,0,0,0,0,22,9,13,8,8,8,8,7,8,2,15,2,6,2,36,0,7,0,18,22,16,17,16,18,22,21,27,17,16,16,40,33,27,31,35,37,8,28,27,8,8,8,8,8,8,8,8,8,8,8,8,8,8,8,8,0,0,0,0,0,0,0,0,0,0]} 1. e4 {[%emt 0:00:02]} c5 {[%emt 0:00:07]} 2. Nf3 {[%emt 0:00:05]} e6 {[%emt 0:00:04]} 3. c3 {[%emt 0:00:09]} Nf6 {[%emt 0:00:23]} 4. d3 {[%emt 0:00:11]} Nc6 {[%emt 0:00:52]} 5. g3 {[%emt 0:00:12]} d5 {[%emt 0:01:25]} 6. e5 {[%emt 0:00:28]} Nd7 {[%emt 0:00:06]} 7. d4 {[%emt 0:01:41]} Be7 {[%emt 0:05:55]} 8. Be3 {[%emt 0:00:24]} O-O {[%emt 0:02:07]} 9. Bg2 {[%emt 0:00:33]} (9. Nbd2 $11) 9... b5 $15 {[%emt 0:04:14]} 10. Nbd2 {[%emt 0:01:44]} a5 {[%emt 0:01:59]} 11. O-O {[%emt 0:00:18]} Ba6 {[%emt 0:01:24]} 12. Re1 {[%emt 0:00:41]} b4 {[%emt 0:01:01]} 13. Bf1 {[%emt 0:06:11]} Bxf1 {[%emt 0:03:08]} 14. Kxf1 {[%emt 0:00:20]} bxc3 {[%emt 0:01:38]} 15. bxc3 {[%emt 0:00:02]} cxd4 {[%emt 0:00:17]} 16. Bxd4 {[%emt 0:02:01]} Nxd4 {[%emt 0:02:04]} (16... Qc7 $17) 17. cxd4 $11 {[%emt 0:00:05]} a4 {[%emt 0:01:30]} 18. Rb1 {[%emt 0:01:34]} Qa5 {[%emt 0:00:05]} 19. Qe2 {[%emt 0:00:57]} Rab8 {[%emt 0:00:12]} 20. Rec1 {[%emt 0:02:08]} Rxb1 {[%emt 0:04:07]} 21. Rxb1 {[%emt 0:00:58]} Rb8 {[%emt 0:00:17] Prevents Rb7} 22. Qd3 {[%emt 0:04:27]} Rxb1+ {[%emt 0:07:27]} 23. Qxb1 {[%emt 0:07:05]} Qa6+ {[%emt 0:00:40]} 24. Ke1 {[%emt 0:01:18]} (24. Kg2 $11 {keeps the balance.}) 24... Nb6 $17 {[%emt 0:00:53]} 25. Qc2 {[%emt 0:01:15]} Qc8 {[%emt 0:01:14]} (25... Nc8 $17 26. Qb1 h6) 26. Qxc8+ $11 {[%emt 0:05:50]} Nxc8 {[%emt 0:00:04][%mdl 4096] Endgame. KBN-KNN} 27. Nb1 {[%emt 0:02:14]} Kf8 {[%emt 0:01:10]} 28. Kd2 {[%emt 0:02:01]} Bb4+ {[%emt 0:01:03]} 29. Kd3 {[%emt 0:00:56]} Nb6 {[%emt 0:01:57]} 30. Nc3 {[%emt 0:00:54]} Ke8 {[%emt 0:03:06]} 31. Kc2 {[%emt 0:00:38]} Be7 {[%emt 0:01:31]} 32. Ne1 {[%emt 0:00:33]} Kd7 {[%emt 0:03:42]} 33. Nd3 {[%emt 0:00:28]} f6 {[%emt 0:06:16]} 34. f4 {[%emt 0:04:05]} Kc6 {[%emt 0:12:09]} 35. exf6 {[%emt 0:22:28]} gxf6 {[%emt 0:03:06] [#]} 36. f5 $1 {[%emt 0:00:26]} exf5 {[%emt 0:03:35]} 37. Nf4 {[%emt 0:00:02]} Bd6 {[%emt 0:10:23]} 38. Nh5 {[%emt 0:01:36]} f4 {[%emt 0:01:10]} 39. gxf4 {[%emt 0:01:11]} f5 {[%emt 0:03:54]} 40. Kd3 {[%emt 0:03:02]} Kd7 {[%emt 0:03:51]} 41. Nd1 {[%emt 0:08:50]} Nc8 {[%emt 0:02:14]} 42. Ke3 {[%emt 0:01:08]} Ke6 {[%emt 0:02:06] Wards off Nf6} 43. Nc3 {[%emt 0:06:16]} Nb6 {[%emt 0:00:24]} 44. Ng7+ {[%emt 0:02:54]} Kf6 {[%emt 0:00:07]} 45. Ne8+ {[%emt 0:00:06] A dynamic duo of knights.} Ke7 {[%emt 0:00:26]} 46. Nxd6 {[%emt 0:01:13]} Kxd6 {[%emt 0:00:02] KN-KN} 47. Kd3 {[%emt 0:00:10]} Kc6 {[%emt 0:01:16]} 48. Kc2 {[%emt 0:07:26]} Nc4 {[%emt 0:01:24]} 49. Nxa4 {[%emt 0:01:29]} Ne3+ $1 {[%emt 0:00:03]} 50. Kd3 {[%emt 0:00:23]} Ng2 {[%emt 0:00:02]} 51. Nc5 {[%emt 0:00:35]} Nxf4+ {[%emt 0:01:11]} 52. Ke3 {[%emt 0:00:17]} Ng6 {[%emt 0:01:05]} 53. a4 {[%emt 0:01:31]} Kb6 {[%emt 0:00:03] The position is equal.} 54. Nd7+ {[%emt 0:00:31]} Ka5 {[%emt 0:00:27]} 55. Nf6 {[%emt 0:00:18][%csl LRd5,LRh7]} Kxa4 {[%emt 0:00:42]} 56. Nxd5 {[%emt 0:00:37]} Kb5 {[%emt 0:00:23]} 57. Nf6 {[%emt 0:01:08]} h6 {[%emt 0:00:24]} 58. Ng8 {[%emt 0:00:17]} h5 {[%emt 0:00:09]} 59. Nh6 {[%emt 0:00:42]} Ne7 {[%emt 0:01:05]} 60. Kf4 {[%emt 0:01:08]} Kc4 {[%emt 0:00:06]} 61. Nxf5 {[%emt 0:00:34]} Nxf5 {[%emt 0:00:05]} 62. Kxf5 {[%emt 0:00:16] [#] White threatens Ke5 and mate.} Kxd4 {[%emt 0:00:02]} 63. h4 {[%emt 0:00:14]} Kd5 {[%emt 0:00:04]} 64. Kg5 {[%emt 0:00:13]} Ke6 {[%emt 0:00:04]} 65. Kxh5 {[%emt 0:00:25]} Kf7 {[%emt 0:00:02] Weighted Error Value: White=0.08 (flawless) /Black=0.08 (flawless) .  Mistake:       	White=2     	Black=2      Inaccurate:     	White=1     	Black=2      OK:         	White=24    	Black=27     Best:        	White=1     	Black=6      Strong:       	---       	Black=1} 1/2-1/2

[Event "NY Presidents Day IM-B 2024"]
[Site "New York"]
[Date "2024.02.18"]
[Round "5.2"]
[White "Bortnyk, Mykola"]
[Black "Sun, Ryan"]
[Result "1-0"]
[ECO "E17"]
[WhiteElo "2421"]
[BlackElo "2217"]
[Annotator "TA"]
[PlyCount "141"]
[EventDate "2024.02.14"]
[EventType "schev"]
[EventCountry "USA"]
[SourceTitle "playchess.com"]
[Source "ChessBase"]
[SourceQuality "1"]
[TimeControl "5400+30"]

{[%evp 19,141,17,10,24,51,64,70,64,42,42,48,58,135,143,144,77,62,77,76,95,91,55,63,60,58,35,24,17,18,36,6,10,61,69,61,72,66,62,65,51,127,142,224,231,234,240,240,240,239,239,235,234,263,247,234,236,561,558,587,570,5061,5046,6608,6608,6608,6601,6597,5057,6601,6594,6587,694,694,669,662,654,647,625,618,607,501,402,315,181,181,181,181,181,181,167,166,53,54,52,52,0,172,61,82,52,68,45,52,52,165,165,166,166,166,166,168,97,150,76,150,150,29974,29975,29975,29976,29974,29975,29988,29989]} 1. c4 {[%emt 0:00:04]} Nf6 {[%emt 0:00:19]} 2. Nf3 {[%emt 0:00:26]} e6 {[%emt 0:00:09]} 3. g3 {[%emt 0:00:35]} b6 {[%emt 0:01:31]} 4. Bg2 {[%emt 0:00:23]} Bb7 {[%emt 0:00:06]} 5. Nc3 {[%emt 0:01:03]} Be7 {[%emt 0:00:07]} 6. O-O {[%emt 0:00:38]} O-O {[%emt 0:00:08]} 7. Re1 {[%emt 0:00:19]} d5 {[%emt 0:02:57]} 8. cxd5 {[%emt 0:01:33]} exd5 {[%emt 0:00:10]} 9. d4 {[%emt 0:00:34]} Nbd7 {[%emt 0:00:40]} 10. Bf4 {[%emt 0:00:45]} c5 {[%emt 0:03:48]} 11. Rc1 {[%emt 0:04:53]} Re8 {[%emt 0:02:19]} 12. Nb5 {[%emt 0:00:22]} Nh5 {[%emt 0:06:47]} 13. Bc7 {[%emt 0:05:10] White is slightly better.} Qc8 {[%emt 0:00:09] And now ...a6 would win.} 14. dxc5 {[%emt 0:00:14]} bxc5 {[%emt 0:03:45]} 15. Bd6 {[%emt 0:02:15] Black must now prevent Nfd4.} Qc6 {[%emt 0:03:53]} (15... a6 $14 16. Bxe7 Rxe7 (16... axb5 17. Bxc5 Nxc5 18. b4 $18)) 16. Nfd4 $1 $16 {[%emt 0:00:40][%cal Bf3d4,Bd4f5,Bf5d6][%mdl 32]} Qb6 {[%emt 0:01:36]} 17. Bxe7 {[%emt 0:03:54]} (17. Nf5 $142 Bg5 18. e3 Qxb5 19. Qxh5) 17... Rxe7 {[%emt 0:03:58]} (17... cxd4 $2 18. Nc7 $18) 18. Nf5 {[%emt 0:00:21][%csl LRd5,LRe7]} Re5 {[%emt 0:06:15]} 19. Nbd6 {[%emt 0:01:08] e4 would now be deadly.} Nhf6 {[%emt 0:01:28] [#]} 20. e4 $1 {[%emt 0:00:35]} dxe4 {[%emt 0:07:35]} 21. Nc4 {[%emt 0:00:31][%csl LRb6,LRe5]} Qe6 {[%emt 0:00:08]} 22. Nxe5 {[%emt 0:03:29]} Nxe5 {[%emt 0:00:07]} 23. Nd6 {[%emt 0:00:37]} Rd8 {[%emt 0:01:17]} 24. Nxb7 {[%emt 0:01:07]} Rxd1 {[%emt 0:00:17]} 25. Rcxd1 {[%emt 0:00:02]} (25. Rexd1 $6 h6 $16) 25... Ned7 {[%emt 0:02:57] [#]} (25... Qxa2 26. Rd8+) (25... Nd3 $2 26. Rxd3 g6 27. Nxc5 Qxa2 28. Nxe4 Nxe4 29. Rxe4 $18 (29. Bxe4 Kg7 $18)) (25... g6 $11 26. Nxc5 (26. Bxe4 $2 Nxe4 27. Nxc5 Nxc5 $19) 26... Qxa2) 26. Bxe4 $1 $14 {[%emt 0:00:29]} Qxa2 {[%emt 0:04:25] [#]} (26... Nxe4 $2 27. Nxc5 Qf5 28. Rxe4 $16 (28. Nxd7 $2 Qxf2+ 29. Kh1 f6 $19) (28. Nxe4 h6 $16)) (26... g6 27. Bd5) 27. Nxc5 $1 {[%emt 0:06:14] White is much more active.} Nf8 {[%emt 0:00:21][%cal Of6e4]} 28. b4 {[%emt 0:04:48][%cal Bb2b4,Bb4a5,Ba5a6,Ba6a7][%mdl 32]} Qc4 {[%emt 0:01:42] Black is weak on the light squares} 29. Rb1 {[%emt 0:00:23]} a5 {[%emt 0:06:02]} 30. Rec1 $1 $16 {[%emt 0:01:24]} Qd4 {[%emt 0:01:52] [#]} (30... Qb5 $16) 31. bxa5 $1 $18 {[%emt 0:00:12]} Nxe4 {[%emt 0:00:39]} 32. Nxe4 {[%emt 0:00:07]} Qxe4 {[%emt 0:00:08]} 33. a6 {[%emt 0:00:26]} Qa8 {[%emt 0:03:00] Prevents a7} 34. Ra1 {[%emt 0:00:04][%mdl 1024] White has strong compensation.} Qa7 {[%emt 0:00:09] [#]} 35. Rc7 $3 {[%emt 0:00:39][%mdl 512]} Qd4 {[%emt 0:02:48]} (35... Qxc7 36. a7) 36. Rac1 {[%emt 0:00:39] Strongly threatening a7.} Qa4 {[%emt 0:00:52]} (36... Ne6 $2 37. a7 g6 38. a8=Q+ $18 (38. a8=B $2 Nxc7 39. Bf3 Nb5 $19) (38. Rc8+ Kg7 $18)) 37. a7 {[%emt 0:00:04] Hoping for Re7.} h5 $2 {[%emt 0:00:13]} (37... g5 {is a better chance.} 38. Re7 Kg7) 38. h4 {[%emt 0:01:09] Threatens to win with Rb1.} g5 {[%emt 0:14:39][%cal Bg7g5,Bg5h4][%mdl 32]} 39. R1c5 {[%emt 0:02:25]} ({Less strong is} 39. hxg5 Kg7 $16) 39... gxh4 {[%emt 0:07:14]} 40. Rg5+ {[%emt 0:02:20]} ({Stronger than} 40. Rxh5 Qd1+ 41. Kg2 Qxh5 $11) 40... Kh7 {[%emt 0:00:50]} 41. Rxf7+ {[%emt 0:00:43]} Kh6 {[%emt 0:00:05]} 42. Rxf8 {[%emt 0:03:51][%mdl 4096] Endgame. gxh4 would kill now. KQ-KRR} Qa1+ {[%emt 0:01:26]} 43. Kg2 {[%emt 0:01:40]} Qxa7 {[%emt 0:01:29]} 44. gxh4 {[%emt 0:00:27] Intending Rh8+ and mate.} Qb7+ {[%emt 0:00:07]} 45. Kg1 {[%emt 0:00:27]} Qb2 {[%emt 0:00:20] Against Rh8+} 46. Rff5 {[%emt 0:00:20]} Qc1+ {[%emt 0:00:15]} 47. Kg2 {[%emt 0:00:07]} Qc6+ {[%emt 0:00:05]} 48. Rd5 {[%emt 0:00:05]} Kh7 {[%emt 0:01:09]} 49. Rxh5+ {[%emt 0:00:08]} Kg6 {[%emt 0:00:05]} 50. Rhg5+ {[%emt 0:00:08]} Kh6 {[%emt 0:00:12]} 51. h5 {[%emt 0:00:07]} (51. Rge5 $142) 51... Kh7 {[%emt 0:00:29]} 52. Rge5 {[%emt 0:00:40]} Kh6 {[%emt 0:00:23]} 53. Kg3 {[%emt 0:00:50]} Qc7 {[%emt 0:01:12]} 54. f4 {[%emt 0:00:42] aiming for Re6+.} Qg7+ {[%emt 0:00:28]} 55. Kh4 {[%emt 0:00:12]} (55. Rg5 $1 $18 {[%cal Rg5g7]} Qc3+ 56. Kg4 Qc8+ 57. Kh4) 55... Qe7+ {[%emt 0:01:10]} 56. Kg4 {[%emt 0:00:24]} Qd7+ $1 {[%emt 0:00:06]} 57. Kg3 {[%emt 0:00:50]} ({Don't do} 57. Kh4 Qe7+ 58. Kg3 Qa3+ 59. Kg4 Qe7 $16) (57. Kf3 $14) 57... Qg7+ $1 {[%emt 0:00:07]} 58. Kf3 {[%emt 0:00:29]} (58. Rg5 $18 Qc3+ 59. Kg4 Qc8+ 60. Rgf5) 58... Qd7 $14 {[%emt 0:00:15]} 59. Rf5 {[%emt 0:02:38]} Qc6 {[%emt 0:00:40] Prevents Rf6+.} 60. Kg4 {[%emt 0:00:22] Rfe5 is the strong threat.} Qd7 {[%emt 0:00:50]} 61. Kg3 {[%emt 0:00:34] White wants to mate with Rf6+.} Qg7+ {[%emt 0:01:02]} ({Better is} 61... Qe7 $14) 62. Rg5 $1 $18 {[%emt 0:00:03]} Qc3+ {[%emt 0:00:05]} 63. Kg4 {[%emt 0:00:07] Threatening mate with Rd6+.} Qc8+ {[%emt 0:00:41]} 64. Kh4 {[%emt 0:00:04]} Qc7 {[%emt 0:00:53]} 65. Rg6+ {[%emt 0:00:46]} Kh7 {[%emt 0:00:07]} 66. Rf6 {[%emt 0:04:03]} (66. Rdd6 $142 $1 {White threatens Rh6+ and mate.} Qe7+ 67. Kg4 Qe2+ 68. Kg5 Qg2+ 69. Kf6 Qb2+ 70. Ke7) 66... Qe7 {[%emt 0:01:02]} ({Black should play} 66... Qa7) 67. Kg5 $16 {[%emt 0:00:07]} Kg7 $2 {[%emt 0:00:27] A mistake that costs the game.} (67... Kh8 $16) 68. Rdd6 {[%emt 0:00:06] White mates.} Kh8 {[%emt 0:01:12] [#]} 69. Kf5 $1 {[%emt 0:01:06]} Qh7+ {[%emt 0:00:08] [#]} 70. Kg4 $1 {[%emt 0:00:06]} Qg7+ {[%emt 0:00:24]} 71. Kh3 {[%emt 0:00:07] Weighted Error Value: White=0.06 (flawless) /Black=0.32.  Loses game:     	---       	Black=1      Mistake:       	White=6     	Black=7      Inaccurate:     	White=2     	Black=4      OK:         	White=18    	Black=19     Best:        	White=6     	Black=2      Strong:       	White=4     	Black=2      Brilliant:      	White=1     	---} 1-0

[Event "NY Presidents Day IM-B 2024"]
[Site "New York"]
[Date "2024.02.18"]
[Round "5.3"]
[White "Lima, Darcy"]
[Black "Lee, Megan"]
[Result "1-0"]
[ECO "B50"]
[WhiteElo "2370"]
[BlackElo "2267"]
[Annotator "RC"]
[PlyCount "67"]
[EventDate "2024.02.14"]
[EventType "schev"]
[EventCountry "USA"]
[SourceTitle "playchess.com"]
[Source "ChessBase"]
[SourceQuality "1"]
[TimeControl "5400+30"]

1. e4 {[%emt 0:00:02]} c5 {[%emt 0:00:12]} 2. Nf3 {[%emt 0:00:07]} d6 {[%emt 0:00:04]} 3. c3 {[%emt 0:00:07]} Nf6 {[%emt 0:01:02]} 4. Be2 {[%emt 0:00:06]} Nc6 {[%emt 0:01:57]} 5. d4 {[%emt 0:00:06]} cxd4 {[%emt 0:02:20]} 6. cxd4 {[%emt 0:00:06]} Nxe4 {[%emt 0:03:56]} 7. d5 {[%emt 0:00:09]} Qa5+ {[%emt 0:00:25]} 8. Nc3 {[%emt 0:00:09]} Nxc3 {[%emt 0:04:07]} 9. bxc3 {[%emt 0:00:05]} Ne5 {[%emt 0:00:52]} 10. Nxe5 {[%emt 0:04:00]} Qxc3+ {[%emt 0:09:03]} 11. Bd2 {[%emt 0:00:08]} Qxe5 {[%emt 0:00:04]} 12. O-O {[%emt 0:00:03]} Qxd5 {[%emt 0:01:25]} 13. Qc1 {[%emt 0:02:42]} Bf5 {[%emt 0:05:17]} 14. Be3 {[%emt 0:03:17]} a6 {[%emt 0:06:38]} 15. Qb2 {[%emt 0:02:13]} e5 {[%emt 0:07:38]} 16. Rfd1 {[%emt 0:07:38]} Qc6 {[%emt 0:01:15]} 17. Rac1 {[%emt 0:07:39]} Qd7 {[%emt 0:00:10]} 18. Bf3 {[%emt 0:00:25]} e4 {[%emt 0:07:36]} 19. Be2 {[%emt 0:00:12]} b5 {[%emt 0:04:30]} 20. a4 {[%emt 0:21:43]} Rb8 {[%emt 0:04:07]} 21. axb5 {[%emt 0:00:14]} axb5 {[%emt 0:05:13]} 22. Rd5 {[%emt 0:05:37]} b4 {[%emt 0:01:18]} 23. Ra5 {[%emt 0:04:36]} f6 {[%emt 0:11:15]} 24. Bc4 {[%emt 0:02:47]} Ke7 {[%emt 0:11:26]} 25. Bd5 {[%emt 0:10:05]} Rb5 {[%emt 0:02:11]} 26. Ra7 {[%emt 0:05:47]} Rxd5 {[%emt 0:02:34]} 27. Qxb4 {[%emt 0:01:20]} Qxa7 {[%emt 0:03:41]} 28. Bxa7 {[%emt 0:00:02]} Rd3 {[%emt 0:00:56]} 29. g4 {[%emt 0:03:49]} Bg6 {[%emt 0:00:53]} 30. Bd4 {[%emt 0:05:49]} Rxd4 {[%emt 0:02:34]} 31. Qxd4 {[%emt 0:00:31]} h5 {[%emt 0:01:21]} 32. Qd5 {[%emt 0:01:25]} Be8 {[%emt 0:00:30]} 33. Qxe4+ {[%emt 0:01:20]} Kd8 {[%emt 0:00:00]} 34. Qa8+ {[%emt 0:00:27]} 1-0

[Event "NY Presidents Day IM-B 2024"]
[Site "New York"]
[Date "2024.02.18"]
[Round "5.4"]
[White "Tanenbaum, Zachary"]
[Black "Xu, Grant"]
[Result "0-1"]
[ECO "B01"]
[WhiteElo "2272"]
[BlackElo "2313"]
[Annotator "TA"]
[PlyCount "50"]
[EventDate "2024.02.14"]
[EventType "schev"]
[EventCountry "USA"]
[SourceTitle "playchess.com"]
[Source "ChessBase"]
[SourceQuality "1"]
[TimeControl "5400+30"]

{[%evp 9,50,45,56,27,32,23,45,42,38,-8,-13,-28,0,0,0,0,22,0,0,2,8,0,7,-23,0,-51,-48,-102,-85,-174,-129,-134,-95,-134,-118,-275,-292,-1556,-1553,-29996,-29997,-29997,-29998]} 1. e4 {[%emt 0:28:10]} d5 {[%emt 0:00:26]} 2. exd5 {[%emt 0:00:17]} Qxd5 {[%emt 0:00:05]} 3. Nc3 {[%emt 0:00:55]} Qd8 {[%emt 0:00:08]} 4. d4 {[%emt 0:00:09]} Nf6 {[%emt 0:00:11]} 5. Nf3 {[%emt 0:00:20]} Bg4 {[%emt 0:00:21]} 6. Bc4 {[%emt 0:00:47][%cal Of3e5] [#] Ne5! ist eine echte Drohung.} e6 {[%emt 0:00:10]} 7. h3 {[%emt 0:01:06]} Bxf3 {[%emt 0:00:52]} 8. Qxf3 {[%emt 0:00:06] Weiß steht etwas besser.} c6 {[%emt 0:00:07]} 9. Bb3 {[%emt 0:32:41]} (9. Be3 $14) 9... Qxd4 $11 {[%emt 0:02:01]} 10. Be3 {[%emt 0:00:24]} Qb4 {[%emt 0:03:19]} 11. O-O-O {[%emt 0:02:46]} Be7 {[%emt 0:02:43]} 12. g4 {[%emt 0:10:18][%cal Bg2g4,Bg4g5][%mdl 32]} O-O {[%emt 0:01:32]} 13. Bd2 {[%emt 0:02:12][%cal Oc3d5][%mdl 1024] [#] Droht Nd5! und aus. Weiss hat Kompensation.} Qb6 {[%emt 0:00:59]} 14. g5 {[%emt 0:17:19]} Nd5 {[%emt 0:00:28]} 15. h4 {[%emt 0:00:00]} Nd7 {[%emt 0:00:40]} 16. h5 {[%emt 0:00:00]} Nc5 {[%emt 0:07:42]} 17. Rdg1 {[%emt 0:00:00]} (17. Na4 $11 Nxb3+ 18. axb3) 17... Nxb3+ $15 {[%emt 0:01:40]} 18. cxb3 {[%emt 0:00:00]} (18. axb3 $15 Qa5 19. Kb1) 18... Qc5 {[%emt 0:01:47]} 19. Qg2 {[%emt 0:01:14]} (19. Kb1 $17 {war einen Versuch wert.}) 19... Nxc3 {[%emt 0:00:43]} 20. Bxc3 {[%emt 0:00:34]} Qd5 {[%emt 0:01:40]} 21. f3 {[%emt 0:00:39]} Rad8 {[%emt 0:03:29] Schwarz steht aktiver.} 22. Rh4 $2 {[%emt 0:00:53] Der Zug kostet die Partie für Weiß.} (22. Qg4 $17 {kämpft weiter.}) 22... Bc5 $19 {[%emt 0:00:37]} 23. Rf1 $2 {[%emt 0:00:38]} (23. Rgh1) 23... Be3+ {[%emt 0:00:10]} 24. Kb1 {[%emt 0:00:15]} Qd3+ {[%emt 0:00:03]} 25. Qc2 {[%emt 0:00:21]} Qxf1+ {[%emt 0:00:06] Gewichteter Fehlerwert: Weiß=0.80/Schwarz=0.10 (sehr präzise) .  Fehler:       	Weiß=6     	---        Ungenau:       	Weiß=3     	Schwarz=1     OK:         	Weiß=3     	Schwarz=9     Bester:       	---       	Schwarz=1} 0-1